fUSD/lending_fUSD_20250930
["ID","MTS","AMOUNT","RATE_DAILY","PERIOD"]
[388539170,1759236713351,-153.011882,0.00019726,2]
[388539171,1759236713360,-500.0,0.00019726,2]
[388539172,1759236713369,-281.603202,0.00019726,2]
[388539173,1759236713380,-3815.16,0.00019726,2]
[388539174,1759236713389,-681.713007,0.00019726,2]
[388539175,1759236713399,-369.687376,0.00019726,2]
[388539176,1759236713408,-1303.96,0.00019726,2]
[388539177,1759236713418,-681.713007,0.00019726,2]
[388539178,1759236713428,-369.687371,0.00019726,2]
[388539179,1759236713437,-527.56,0.00019726,2]
[388539180,1759236713447,-153.011882,0.00019726,2]
[388539181,1759236713456,-153.011888,0.00019726,2]
[388539182,1759236713465,-527.07,0.00019726,2]
[388539183,1759236713475,-681.713007,0.00019726,2]
[388539184,1759236713484,-681.713007,0.00019726,2]
[388539185,1759236713493,-681.713007,0.00019726,2]
[388539186,1759236713502,-681.713007,0.00019726,2]
[388539187,1759236713511,-1399.73,0.00019726,2]
[388539188,1759236713521,-500.0,0.00019726,2]
[388539189,1759236713530,-500.0,0.00019726,2]
[388539190,1759236713540,-681.713007,0.00019726,2]
[388539191,1759236713549,-2619.03,0.00019726,2]
[388539192,1759236713558,-681.713002,0.00019726,2]
[388539193,1759236713568,-2913.4,0.00019726,2]
[388539194,1759236713577,-21774.44,0.00019726,2]
[388539195,1759236713586,-500.0,0.00019726,2]
[388539196,1759236713597,-2968.61,0.00019726,2]
[388539197,1759236713607,-500.0,0.00019726,2]
[388539198,1759236713616,-1918.13,0.00019726,2]
[388539199,1759236713626,-1472.51,0.00019726,2]
[388539200,1759236713635,-247.262938,0.00019726,2]
[388539201,1759236713644,-500.0,0.00019726,2]
[388539202,1759236713654,-4650.74,0.00019726,2]
[388539203,1759236713663,-247.262938,0.00019726,2]
[388539204,1759236713672,-500.0,0.00019726,2]
[388539205,1759236713682,-500.0,0.00019726,2]
[388539206,1759236713692,-247.262938,0.00019726,2]
[388539207,1759236713701,-2147.86,0.00019726,2]
[388539208,1759236713710,-247.262938,0.00019726,2]
[388539209,1759236713720,-500.0,0.00019726,2]
[388539210,1759236713729,-1174.34,0.00019726,2]
[388539211,1759236713739,-247.262938,0.00019726,2]
[388539212,1759236713749,-1497.08,0.00019726,2]
[388539213,1759236713758,-19565.78,0.00019726,2]
[388539214,1759236713768,-247.262938,0.00019726,2]
[388539215,1759236713778,-500.0,0.00019726,2]
[388539216,1759236713787,-3388.02,0.00019726,2]
[388539217,1759236713797,-4713.09,0.00019726,2]
[388539218,1759236713807,-247.262938,0.00019726,2]
[388539219,1759236713821,-247.262941,0.00019726,2]
[388539220,1759236713831,-2799.17,0.00019726,2]
[388539221,1759236713840,-2233.98,0.00019726,2]
[388539222,1759236713850,-1643.92,0.00019726,2]
[388539223,1759236713861,-1348.57,0.00019726,2]
[388539224,1759236713871,-1023.1,0.00019726,2]
[388539225,1759236713880,-1425.3,0.00019726,2]
[388539226,1759236713892,-4011.93,0.00019726,2]
[388539227,1759236713902,-1836.14,0.00019726,2]
[388539228,1759236713911,-500.0,0.00019726,2]
[388539229,1759236713921,-500.0,0.00019726,2]
[388539230,1759236713930,-1122.49,0.00019726,2]
[388539231,1759236713939,-3165.44,0.00019726,2]
[388539232,1759236713949,-500.0,0.00019726,2]
[388539233,1759236713959,-500.0,0.00019726,2]
[388539234,1759236713969,-636.3,0.00019726,2]
[388539235,1759236713979,-151.0,0.00019726,2]
[388539236,1759236713988,-151.0,0.00019726,2]
[388539237,1759236713998,-1351.71,0.00019726,2]
[388539238,1759236714007,-151.0,0.00019726,2]
[388539239,1759236714017,-151.0,0.00019726,2]
[388539240,1759236714026,-500.0,0.00019726,2]
[388539241,1759236714036,-500.0,0.00019726,2]
[388539242,1759236714045,-151.0,0.00019726,2]
[388539243,1759236714055,-4883.0,0.00019726,2]
[388539244,1759236714065,-500.0,0.00019726,2]
[388539245,1759236714074,-4753.48,0.00019726,2]
[388539246,1759236714084,-151.0,0.00019726,2]
[388539247,1759236714094,-934.85,0.00019726,2]
[388539248,1759236714103,-500.0,0.00019726,2]
[388539249,1759236714113,-500.0,0.00019726,2]
[388539250,1759236714123,-12816.21,0.00019726,2]
[388539251,1759236714132,-1515.69,0.00019726,2]
[388539252,1759236714142,-4248.48,0.00019726,2]
[388539253,1759236714151,-1085.56,0.00019726,2]
[388539254,1759236714161,-3443.7,0.00019726,2]
[388539255,1759236714170,-500.0,0.00019726,2]
[388539256,1759236714180,-150.0,0.00019726,2]
[388539257,1759236714190,-10208.2,0.00019726,2]
[388539258,1759236714199,-500.0,0.00019726,2]
[388539259,1759236714208,-500.0,0.00019726,2]
[388539260,1759236714219,-453.653871,0.00019726,2]
[388539261,1759236714228,-2104.83,0.00019726,2]
[388539262,1759236714237,-453.653871,0.00019726,2]
[388539263,1759236714247,-150.0,0.00019726,2]
[388539264,1759236714256,-2104.83,0.00019726,2]
[388539265,1759236714266,-500.0,0.00019726,2]
[388539266,1759236714276,-150.0,0.00019726,2]
[388539267,1759236714285,-560.67,0.00019726,2]
[388539268,1759236714295,-453.653871,0.00019726,2]
[388539269,1759236714304,-864.482333,0.00019726,2]
[388539270,1759236714313,-18773.04,0.00019726,2]
[388539271,1759236714323,-864.482333,0.00019726,2]
[388539272,1759236714332,-500.0,0.00019726,2]
[388539273,1759236714342,-864.482333,0.00019726,2]
[388539274,1759236714352,-864.482333,0.00019726,2]
[388539275,1759236714361,-821.31,0.00019726,2]
[388539276,1759236714371,-864.482333,0.00019726,2]
[388539277,1759236714381,-961.69,0.00019726,2]
[388539278,1759236714390,-864.482333,0.00019726,2]
[388539279,1759236714400,-500.0,0.00019726,2]
[388539280,1759236714409,-2759.4,0.00019726,2]
[388539281,1759236714419,-666.51,0.00019726,2]
[388539282,1759236714428,-453.653871,0.00019726,2]
[388539283,1759236714437,-1029.44,0.00019726,2]
[388539284,1759236714447,-6876.3,0.00019726,2]
[388539285,1759236714456,-1050.1,0.00019726,2]
[388539286,1759236714467,-3187.48,0.00019726,2]
[388539287,1759236714476,-500.0,0.00019726,2]
[388539288,1759236714487,-500.0,0.00019726,2]
[388539289,1759236714496,-864.482333,0.00019726,2]
[388539290,1759236714505,-1729.31,0.00019726,2]
[388539291,1759236714514,-453.653871,0.00019726,2]
[388539292,1759236714523,-864.482336,0.00019726,2]
[388539293,1759236714533,-453.653871,0.00019726,2]
[388539294,1759236714543,-1339.37,0.00019726,2]
[388539295,1759236714552,-1344.1,0.00019726,2]
[388539296,1759236714561,-797.07,0.00019726,2]
[388539297,1759236714570,-500.0,0.00019726,2]
[388539298,1759236714580,-453.653871,0.00019726,2]
[388539299,1759236714589,-6717.68,0.00019726,2]
[388539300,1759236714598,-500.0,0.00019726,2]
[388539301,1759236714608,-3703.76,0.00019726,2]
[388539302,1759236714617,-453.653864,0.00019726,2]
[388539303,1759236714627,-3484.89,0.00019726,2]
[388539304,1759236714636,-584.149276,0.00019726,2]
[388539305,1759236714645,-584.149276,0.00019726,2]
[388539306,1759236714655,-584.149276,0.00019726,2]
[388539307,1759236714664,-584.149276,0.00019726,2]
[388539308,1759236714674,-151.0,0.00019726,2]
[388539309,1759236714684,-151.0,0.00019726,2]
[388539310,1759236714693,-1238.43,0.00019726,2]
[388539311,1759236714703,-584.149276,0.00019726,2]
[388539312,1759236714712,-584.149276,0.00019726,2]
[388539313,1759236714723,-3586.23,0.00019726,2]
[388539314,1759236714733,-151.0,0.00019726,2]
[388539315,1759236714743,-151.0,0.00019726,2]
[388539316,1759236714752,-601.45,0.00019726,2]
[388539317,1759236714763,-151.0,0.00019726,2]
[388539318,1759236714773,-151.0,0.00019726,2]
[388539319,1759236714782,-568.747205,0.00019726,2]
[388539320,1759236714792,-568.747205,0.00019726,2]
[388539321,1759236714802,-584.149276,0.00019726,2]
[388539322,1759236714812,-244.87174336,0.00019726,2]
[388539323,1759236714824,-212706.38596121,0.00019726,2]
[388539324,1759236714833,-196.85276112,0.00019726,2]
[388539325,1759236714843,-285.47030824,0.00019726,2]
[388539326,1759236714853,-385540.14,0.00019726,2]
[388539327,1759236714863,-250.0,0.00019726,2]
[388539328,1759236714873,-156.587,0.00019726,2]
[388539329,1759236714883,-2500.0,0.00019733,3]
[388539330,1759236714894,-2500.0,0.00019742,3]
[388539331,1759236714903,-2500.0,0.0001975,3]
[388539332,1759236714913,-2500.0,0.00019759,3]
[388539333,1759236714922,-2500.0,0.00019768,3]
[388539334,1759236714931,-193.3,0.0001977,2]
[388539335,1759236715081,-2500.0,0.00019777,3]
[388539336,1759236715092,-157.69,0.00019779,2]
[388539337,1759236715102,-2500.0,0.00019786,3]
[388539338,1759236715111,-2500.0,0.00019794,3]
[388539339,1759236715121,-591.63119991,0.000198,2]
[388539340,1759236715130,-20000.0,0.000198,2]
[388539341,1759236715139,-2500.0,0.00019803,3]
[388539342,1759236715149,-157.69,0.00019808,2]
[388539343,1759236715158,-244.87174336,0.00019808,2]
[388539344,1759236715167,-196.85276112,0.00019808,2]
[388539345,1759236715178,-285.47030824,0.00019808,2]
[388539346,1759236715187,-2500.0,0.00019812,3]
[388539347,1759236715197,-2500.0,0.00019821,3]
[388539348,1759236715206,-2500.0,0.0001983,3]
[388539349,1759236715215,-2500.0,0.00019838,3]
[388539350,1759236715225,-2500.0,0.00019847,3]
[388539351,1759236715235,-946.54,0.00019848,2]
[388539352,1759236715244,-5800.0,0.00019849,2]
[388539353,1759236715254,-2500.0,0.00019856,3]
[388539354,1759236715263,-5800.0,0.00019858,2]
[388539355,1759236715272,-168.0,0.00019862,2]
[388539356,1759236715282,-2500.0,0.00019865,3]
[388539357,1759236715291,-5800.0,0.00019866,2]
[388539358,1759236715301,-2500.0,0.00019874,3]
[388539359,1759236715310,-5800.0,0.00019875,2]
[388539360,1759236715319,-354.55,0.00019875,2]
[388539361,1759236715328,-2500.0,0.00019882,3]
[388539362,1759236715337,-5800.0,0.00019883,2]
[388539363,1759236715348,-5800.0,0.00019883,2]
[388539364,1759236715359,-244.87174336,0.0001989,2]
[388539365,1759236715369,-196.85276112,0.0001989,2]
[388539366,1759236715378,-285.47030824,0.0001989,2]
[388539367,1759236715388,-2500.0,0.00019891,3]
[388539368,1759236715397,-5800.0,0.00019892,2]
[388539369,1759236715407,-5800.0,0.00019892,2]
[388539370,1759236715416,-193.3,0.00019896,2]
[388539371,1759236715425,-9505.0,0.000199,2]
[388539372,1759236715434,-269675.96014687,0.000199,2]
[388539373,1759236715443,-5800.0,0.000199,2]
[388539374,1759236715453,-2022.25836536,0.000199,3]
[388539375,1759236715462,-5800.0,0.000199,2]
[388539376,1759236715472,-2500.0,0.000199,3]
[388539377,1759236715482,-5800.0,0.000199,2]
[388539378,1759236715491,-607.13216062,0.000199,2]
[388539379,1759236715501,-200.0,0.0001991,2]
[388539380,1759236715511,-244.87174336,0.00019918,2]
[388539381,1759236715520,-163.24782891,0.00019918,2]
[388539382,1759236715529,-587.0,0.00019927,2]
[388539383,1759236715538,-14498.30672278,0.0001995,15]
[388539384,1759236715548,-150.0,0.0001995,2]
[388539385,1759236715558,-300.0,0.00019954,2]
[388539386,1759236715567,-400.0,0.0001997,2]
[388539387,1759236715578,-400.40359814,0.0001997,2]
[388539388,1759236715594,-700.0,0.0001997,2]
[388539389,1759236715604,-1200.99558879,0.0001997,2]
[388539390,1759236715614,-244.87174336,0.00019973,2]
[388539391,1759236715623,-196.85276112,0.00019973,2]
[388539392,1759236715633,-285.47030824,0.00019973,2]
[388539393,1759236715643,-150.0,0.00019973,2]
[388539394,1759236715653,-444.9590261,0.00019975,2]
[388539395,1759236715662,-47209.0,0.0001998,2]
[388539396,1759236715672,-1649.87,0.00019982,2]
[388539397,1759236715682,-529.55,0.00019999,2]
[388539398,1759236715691,-1002.0,0.00019999,2]
[388539399,1759236715701,-802.64,0.00019999,2]
[388539400,1759236715710,-600.0,0.00019999,2]
[388539401,1759236715720,-547.3,0.00019999,2]
[388539402,1759236715729,-500.0,0.00019999,2]
[388539403,1759236715738,-500.0,0.00019999,2]
[388539404,1759236715748,-915.94,0.00019999,2]
[388539405,1759236715757,-500.0,0.00019999,2]
[388539406,1759236715766,-500.0,0.00019999,2]
[388539407,1759236715775,-500.0,0.00019999,2]
[388539408,1759236715785,-661.48,0.00019999,2]
[388539409,1759236715794,-633.92,0.00019999,2]
[388539410,1759236715803,-916.09,0.00019999,2]
[388539411,1759236715815,-1022.35,0.00019999,2]
[388539412,1759236715826,-1000.0,0.00019999,2]
[388539413,1759236715836,-1000.0,0.00019999,2]
[388539414,1759236715845,-150.0,0.0002,2]
[388539415,1759236715855,-500.0,0.0002,2]
[388539416,1759236715864,-150.0,0.0002,2]
[388539417,1759236715873,-150.36353587,0.0002,2]
[388539418,1759236715883,-485.0,0.0002,2]
[388539419,1759236715892,-150.0,0.0002,2]
[388539420,1759236715903,-500.0,0.0002,2]
[388539421,1759236715914,-150.0,0.0002,2]
[388539422,1759236715923,-500.0,0.0002,2]
[388539423,1759236715933,-607.04727786,0.0002,2]
[388539424,1759236715942,-200.96677742,0.0002,2]
[388539425,1759236715951,-517.46550694,0.0002,2]
[388539426,1759236715960,-150.76919386,0.0002,2]
[388539427,1759236715971,-500.0,0.0002,2]
[388539428,1759236715981,-150.0,0.0002,2]
[388539429,1759236715992,-500.0,0.0002,2]
[388539430,1759236716002,-150.90482326,0.0002,2]
[388539431,1759236716012,-150.0,0.0002,2]
[388539432,1759236716022,-150.0,0.0002,2]
[388539433,1759236716031,-152.75692236,0.0002,2]
[388539434,1759236716041,-500.0,0.0002,2]
[388539435,1759236716050,-150.0,0.0002,2]
[388539436,1759236716060,-500.0,0.0002,2]
[388539437,1759236716070,-500.0,0.0002,2]
[388539438,1759236716080,-500.0,0.0002,2]
[388539439,1759236716089,-494.0,0.0002,2]
[388539440,1759236716098,-150.0,0.0002,2]
[388539441,1759236716108,-500.0,0.0002,2]
[388539442,1759236716118,-1178.0,0.0002,2]
[388539443,1759236716127,-500.0,0.0002,2]
[388539444,1759236716137,-500.0,0.0002,2]
[388539445,1759236716147,-500.0,0.0002,2]
[388539446,1759236716160,-500.0,0.0002,2]
[388539447,1759236716169,-426.0,0.0002,2]
[388539448,1759236716179,-500.0,0.0002,2]
[388539449,1759236716189,-500.0,0.0002,2]
[388539450,1759236716199,-500.0,0.0002,2]
[388539451,1759236716208,-254.80463876,0.0002,2]
[388539452,1759236716218,-150.60953712,0.0002,2]
[388539453,1759236716227,-150.0,0.0002,2]
[388539454,1759236716236,-12597.9754513,0.0002,3]
[388539455,1759236716246,-150.0,0.0002,2]
[388539456,1759236716255,-150.0,0.0002,2]
[388539457,1759236716268,-111661.04752769,0.0002,2]
[388539458,1759236716279,-150.0,0.0002,2]
[388539459,1759236716288,-789.46931049,0.0002,3]
[388539460,1759236716298,-150.0,0.0002,2]
[388539461,1759236716307,-169.06311579,0.0002,5]
[388539462,1759236716318,-150.0,0.0002,2]
[388539463,1759236716327,-150.0,0.0002,2]
[388539464,1759236716337,-150.0,0.0002,2]
[388539465,1759236716347,-150.0,0.0002,2]
[388539466,1759236716356,-150.0,0.0002,2]
[388539467,1759236716366,-150.0,0.0002,2]
[388539468,1759236716375,-150.0,0.0002,2]
[388539469,1759236716385,-150.0,0.0002,2]
[388539470,1759236716395,-150.0,0.0002,2]
[388539471,1759236716404,-150.0,0.0002,2]
[388539472,1759236716413,-150.0,0.0002,2]
[388539473,1759236716423,-150.0,0.0002,2]
[388539474,1759236716432,-150.0,0.0002,2]
[388539475,1759236716441,-150.0,0.0002,2]
[388539476,1759236716450,-150.0,0.0002,2]
[388539477,1759236716460,-150.0,0.0002,2]
[388539478,1759236716470,-150.0,0.0002,2]
[388539479,1759236716479,-150.0,0.0002,2]
[388539480,1759236716489,-150.0,0.0002,2]
[388539481,1759236716499,-150.0,0.0002,2]
[388539482,1759236716509,-150.0,0.0002,2]
[388539483,1759236716518,-150.0,0.0002,2]
[388539484,1759236716528,-302.94775,0.0002,2]
[388539485,1759236716537,-150.0,0.0002,2]
[388539486,1759236716547,-150.0,0.0002,2]
[388539487,1759236716556,-150.0,0.0002,2]
[388539488,1759236716566,-3169.13723958,0.0002,2]
[388539489,1759236716577,-400.88522955,0.0002,7]
[388539490,1759236716587,-200000.0,0.0002,2]
[388539491,1759236716598,-629.84038604,0.0002,2]
[388539492,1759236716608,-150.0,0.0002,2]
[388539493,1759236716618,-150.0,0.0002,2]
[388539494,1759236716629,-212706.38596121,0.0002,2]
[388539495,1759236716640,-212706.38596121,0.0002,2]
[388539496,1759236716650,-500.0,0.0002,2]
[388539497,1759236716659,-500.0,0.0002,2]
[388539498,1759236716670,-839.75,0.0002,2]
[388539499,1759236716680,-1020.5,0.0002,2]
[388539500,1759236716690,-500.0,0.0002,2]
[388539501,1759236716700,-500.0,0.0002,2]
[388539502,1759236716710,-607.08,0.0002,2]
[388539503,1759236716720,-500.0,0.0002,2]
[388539504,1759236716729,-150.0,0.0002,2]
[388539505,1759236716739,-500.0,0.0002,2]
[388539506,1759236716749,-500.0,0.0002,2]
[388539507,1759236716758,-500.0,0.0002,2]
[388539508,1759236716768,-500.0,0.0002,2]
[388539509,1759236716779,-625.12,0.0002,2]
[388539510,1759236716788,-500.0,0.0002,2]
[388539511,1759236716798,-1964.83,0.0002,2]
[388539512,1759236716808,-1015.48,0.0002,2]
[388539513,1759236716823,-344.90788741,0.0002,2]
[388539514,1759236716833,-312.13377122,0.0002,2]
[388539515,1759236716842,-500.0,0.0002,2]
[388539516,1759236716851,-500.0,0.0002,2]
[388539517,1759236716862,-500.0,0.0002,2]
[388539518,1759236716871,-562.0,0.0002,2]
[388539519,1759236716881,-500.0,0.0002,2]
[388539520,1759236716891,-2282.05,0.0002,2]
[388539521,1759236716900,-852.25,0.0002,2]
[388539522,1759236716910,-2416.93,0.0002,2]
[388539523,1759236716920,-646.78,0.0002,2]
[388539524,1759236716929,-500.0,0.0002,2]
[388539525,1759236716939,-500.0,0.0002,2]
[388539526,1759236716949,-1431.48,0.0002,2]
[388539527,1759236716959,-509.83,0.0002,2]
[388539528,1759236716968,-768.16,0.0002,2]
[388539529,1759236716978,-500.0,0.0002,2]
[388539530,1759236716987,-500.0,0.0002,2]
[388539531,1759236716996,-775.97,0.0002,2]
[388539532,1759236717006,-500.0,0.0002,2]
[388539533,1759236717015,-806.16,0.0002,2]
[388539534,1759236717025,-1121.26,0.0002,2]
[388539535,1759236717034,-789.94,0.0002,2]
[388539536,1759236717043,-789.94,0.0002,2]
[388539537,1759236717054,-757.03,0.0002,2]
[388539538,1759236717063,-1244.26,0.0002,2]
[388539539,1759236717404,-616.9,0.0002,2]
[388539540,1759236717471,-150.0,0.0002,2]
[388539541,1759236717481,-500.0,0.0002,2]
[388539542,1759236717491,-500.0,0.0002,2]
[388539543,1759236717501,-500.0,0.0002,2]
[388539544,1759236717510,-528.24,0.0002,2]
[388539545,1759236717519,-500.0,0.0002,2]
[388539546,1759236717528,-2647.91,0.0002,2]
[388539547,1759236717538,-500.0,0.0002,2]
[388539548,1759236717547,-500.0,0.0002,2]
[388539549,1759236717556,-568.85,0.0002,2]
[388539550,1759236717565,-500.0,0.0002,2]
[388539551,1759236717574,-500.0,0.0002,2]
[388539552,1759236717583,-956.14,0.0002,2]
[388539553,1759236717592,-500.0,0.0002,2]
[388539554,1759236717601,-500.0,0.0002,2]
[388539555,1759236717611,-577.88,0.0002,2]
[388539556,1759236717620,-2697.95,0.0002,2]
[388539557,1759236717630,-1823.42,0.0002,2]
[388539558,1759236717640,-500.0,0.0002,2]
[388539559,1759236717650,-500.0,0.0002,2]
[388539560,1759236717661,-803.3,0.0002,2]
[388539561,1759236717672,-500.0,0.0002,2]
[388539562,1759236717682,-779.29,0.0002,2]
[388539563,1759236717692,-724.75,0.0002,2]
[388539564,1759236717702,-780.81,0.0002,2]
[388539565,1759236717713,-788.0,0.0002,2]
[388539566,1759236717722,-500.0,0.0002,2]
[388539567,1759236717732,-500.0,0.0002,2]
[388539568,1759236717741,-1140.67,0.0002,2]
[388539569,1759236717750,-2507.06,0.0002,2]
[388539570,1759236717760,-500.0,0.0002,2]
[388539571,1759236717769,-961.56,0.0002,2]
[388539572,1759236717779,-500.0,0.0002,2]
[388539573,1759236717788,-500.0,0.0002,2]
[388539574,1759236717798,-500.0,0.0002,2]
[388539575,1759236717808,-150.0,0.0002,2]
[388539576,1759236717820,-500.0,0.0002,2]
[388539577,1759236717830,-500.0,0.0002,2]
[388539578,1759236717839,-2101.19,0.0002,2]
[388539579,1759236717849,-500.0,0.0002,2]
[388539580,1759236717859,-1164.62,0.0002,2]
[388539581,1759236717868,-2399.12,0.0002,2]
[388539582,1759236717878,-1334.02,0.0002,2]
[388539583,1759236717888,-1278.43,0.0002,2]
[388539584,1759236717899,-840.44,0.0002,2]
[388539585,1759236717910,-500.0,0.0002,2]
[388539586,1759236717920,-500.0,0.0002,2]
[388539587,1759236717930,-500.0,0.0002,2]
[388539588,1759236717939,-683.71,0.0002,2]
[388539589,1759236717949,-504.4,0.0002,2]
[388539590,1759236717960,-500.0,0.0002,2]
[388539591,1759236717969,-500.0,0.0002,2]
[388539592,1759236717979,-500.0,0.0002,2]
[388539593,1759236717991,-879.58,0.0002,2]
[388539594,1759236718001,-769.63,0.0002,2]
[388539595,1759236718011,-1955.63,0.0002,2]
[388539596,1759236718020,-1874.15,0.0002,2]
[388539597,1759236718029,-1273.89,0.0002,2]
[388539598,1759236718039,-500.0,0.0002,2]
[388539599,1759236718048,-3314.41,0.0002,2]
[388539600,1759236718057,-500.0,0.0002,2]
[388539601,1759236718066,-650.69,0.0002,2]
[388539602,1759236718076,-500.0,0.0002,2]
[388539603,1759236718086,-500.0,0.0002,2]
[388539604,1759236718095,-500.0,0.0002,2]
[388539605,1759236718104,-500.0,0.0002,2]
[388539606,1759236718114,-500.0,0.0002,2]
[388539607,1759236718124,-500.0,0.0002,2]
[388539608,1759236718133,-500.0,0.0002,2]
[388539609,1759236718142,-500.0,0.0002,2]
[388539610,1759236718151,-686.0,0.0002,2]
[388539611,1759236718161,-500.0,0.0002,2]
[388539612,1759236718170,-150.0,0.0002,2]
[388539613,1759236718179,-500.0,0.0002,2]
[388539614,1759236718189,-500.0,0.0002,2]
[388539615,1759236718198,-153.83708014,0.0002,2]
[388539616,1759236718208,-500.0,0.0002,2]
[388539617,1759236718218,-2599.85,0.0002,2]
[388539618,1759236718227,-500.0,0.0002,2]
[388539619,1759236718236,-500.0,0.0002,2]
[388539620,1759236718246,-474.52590314,0.0002,7]
[388539621,1759236718255,-474.52590314,0.0002,3]
[388539622,1759236718264,-500.0,0.0002,2]
[388539623,1759236718274,-1308.84,0.0002,2]
[388539624,1759236718284,-500.0,0.0002,2]
[388539625,1759236718293,-500.0,0.0002,2]
[388539626,1759236718302,-500.0,0.0002,2]
[388539627,1759236718312,-500.0,0.0002,2]
[388539628,1759236718321,-1204.83,0.0002,2]
[388539629,1759236718330,-500.0,0.0002,2]
[388539630,1759236718340,-1414.35,0.0002,2]
[388539631,1759236718349,-1296.49,0.0002,2]
[388539632,1759236718358,-721.9,0.0002,2]
[388539633,1759236718368,-500.0,0.0002,2]
[388539634,1759236718377,-340.37909115,0.0002,2]
[388539635,1759236718387,-500.0,0.0002,2]
[388539636,1759236718396,-500.0,0.0002,2]
[388539637,1759236718405,-500.0,0.0002,2]
[388539638,1759236718415,-785.77,0.0002,2]
[388539639,1759236718424,-500.0,0.0002,2]
[388539640,1759236718433,-589.91,0.0002,2]
[388539641,1759236718443,-500.0,0.0002,2]
[388539642,1759236718452,-1563.28,0.0002,2]
[388539643,1759236718461,-500.0,0.0002,2]
[388539644,1759236718471,-1019.02,0.0002,2]
[388539645,1759236718480,-300.0,0.0002,2]
[388539646,1759236718490,-500.0,0.0002,2]
[388539647,1759236718499,-531.72,0.0002,2]
[388539648,1759236718510,-500.0,0.0002,2]
[388539649,1759236718519,-500.0,0.0002,2]
[388539650,1759236718528,-1956.66,0.0002,2]
[388539651,1759236718539,-1127.24,0.0002,2]
[388539652,1759236718548,-758.97,0.0002,2]
[388539653,1759236718557,-500.0,0.0002,2]
[388539654,1759236718566,-500.0,0.0002,2]
[388539655,1759236718575,-500.0,0.0002,2]
[388539656,1759236718585,-500.0,0.0002,2]
[388539657,1759236718596,-531.19471929,0.0002,2]
[388539658,1759236718605,-214.30875357,0.0002,2]
[388539659,1759236718615,-500.0,0.0002,2]
[388539660,1759236718624,-557.06,0.0002,2]
[388539661,1759236718633,-500.0,0.0002,2]
[388539662,1759236718643,-1325.61,0.0002,2]
[388539663,1759236718652,-500.0,0.0002,2]
[388539664,1759236718661,-1775.13,0.0002,2]
[388539665,1759236718670,-500.0,0.0002,2]
[388539666,1759236718679,-500.0,0.0002,2]
[388539667,1759236718688,-500.0,0.0002,2]
[388539668,1759236718698,-540.37,0.0002,2]
[388539669,1759236718707,-500.0,0.0002,2]